Company Name,Sub Group,Service Area,Expense Type,Narrative,Date,Transaction Number,Amount,Supplier Name,Supplier Ref,Period,Year
Allerdale Borough Council,15502,Supplies & Services,Housing & Health Pay Group,Land Registry Fees,24/08/2017,210592,66.00,HM LAND REGISTRY ,A00505,5,2017
Allerdale Borough Council,15502,Supplies & Services,Legal Services,Land Registry Fees,24/08/2017,210593,18.00,HM LAND REGISTRY ,A00505,5,2017
Allerdale Borough Council,15502,Supplies & Services,Housing & Health Pay Group,Land Registry Fees,24/08/2017,210594,84.00,HM LAND REGISTRY ,A00505,5,2017
Allerdale Borough Council,54105,Capital Expenditure,Discretionary Grants,Grants  Private Individuals (Capital),02/08/2017,210595,2345.00,DOLPHIN STAIRLIFTS CUMBRIA,X00107,5,2017
Allerdale Borough Council,33113,Income,Building Control - Chargeable,Building Control Fees Income,02/08/2017,210596,241.92,Redacted information - included personal information ,M01186,5,2017
Allerdale Borough Council,16350,Supplies & Services,Homelessness,Miscellaneous Expenses,02/08/2017,210597,550.00,BULMAN PROPERTY LTD,M00502,5,2017
Allerdale Borough Council,16150,Supplies & Services,Town Centre Management,General Promotions,02/08/2017,210598,450.00,Redacted information - included personal information ,M01187,5,2017
Allerdale Borough Council,33110,Income,Land Charges Service,Search & Enquiry Fees General Income,02/08/2017,210599,2.00,ETSOS,M01188,5,2017
Allerdale Borough Council,33110,Income,Land Charges Service,Search & Enquiry Fees General Income,02/08/2017,210600,106.00,ETSOS,M01188,5,2017
Allerdale Borough Council,54105,Capital Expenditure,Disabled Facilities Grants,Grants  Private Individuals (Capital),02/08/2017,210601,6749.00,ASHCROFT CONSTRUCTION (CUMBRIA) LTD,C00196,5,2017
Allerdale Borough Council,15401,Supplies & Services,Electoral Registration,General Stationery,31/08/2017,210602,73.25,BARCLAYCARD COMMERCIAL,X00207,5,2017
Allerdale Borough Council,15103,Supplies & Services,Health & Well-being Group,Purchase of Materials,31/08/2017,210603,21.17,BARCLAYCARD COMMERCIAL,X00207,5,2017
Allerdale Borough Council,14202,Transport,Director of Resources & PA,Hire Car and petrol,31/08/2017,210604,301.98,BARCLAYCARD COMMERCIAL,X00207,5,2017
Allerdale Borough Council,15850,Supplies & Services,Solway Wetlands Project,General Computer Costs,31/08/2017,210605,12.00,BARCLAYCARD COMMERCIAL,X00207,5,2017
Allerdale Borough Council,15201,Supplies & Services,Chief Executive,Entertainment Of Visitors,31/08/2017,210606,102.35,BARCLAYCARD COMMERCIAL,X00207,5,2017
Allerdale Borough Council,14203,Transport,Head of Housing & Health,Mileage Allowances - Car,31/08/2017,210607,87.78,BARCLAYCARD COMMERCIAL,X00207,5,2017
Allerdale Borough Council,15501,Supplies & Services,Trade Waste,Consultants Fees,02/08/2017,210624,950.00,MAYRISE LTD (YOTTA),A00382,5,2017
Allerdale Borough Council,15512,Supplies & Services,Animal Welfare,Kennelling,02/08/2017,210625,20000.00,WHINMILL FARM CANINE CENTRE,A00117,5,2017
Allerdale Borough Council,16150,Supplies & Services,Sports Development,General Promotions,02/08/2017,210626,250.00,NETHERHALL SCHOOL,A00279,5,2017
Allerdale Borough Council,10601,Employee Costs,Economic Regeneration,External Courses & Seminar Fees,02/08/2017,210627,385.00,GOVNET COMMUNICATIONS,A00132,5,2017
Allerdale Borough Council,15501,Supplies & Services,Estates,Consultants Fees,02/08/2017,210628,2352.00,Redacted information - included personal information ,A02433,5,2017
Allerdale Borough Council,20150,Third Party Payments,Museums,General Partnership Service Fees,02/08/2017,210629,7500.00,WORKINGTON HERITAGE GROUP LTD,A00339,5,2017
Allerdale Borough Council,15501,Supplies & Services,Street Cleansing,Consultants Fees,02/08/2017,210630,100.00,MICHAEL DOUGLAS AUTO SALVAGE,A00078,5,2017
Allerdale Borough Council,15501,Supplies & Services,Corporate Transformation,Consultants Fees,09/08/2017,210631,6825.00,Redacted information - included personal information ,A02434,5,2017
Allerdale Borough Council,15800,Supplies & Services,Corporate Postage and Stationary,Budget-Computing Costs (Non Capital),23/08/2017,210632,250.00,ANTALIS LIMITED,A00122,5,2017
Allerdale Borough Council,12309,Premises,Corporate Property Maintenance,Fire and Safety,02/08/2017,210633,90.00,PROTEC SYSTEMS,C00026,5,2017
Allerdale Borough Council,12301,Premises,Corporate Property Maintenance,Security,02/08/2017,210634,60.00,PROTEC SYSTEMS,C00026,5,2017
Allerdale Borough Council,12301,Premises,Corporate Property Maintenance,Security,02/08/2017,210635,60.00,PROTEC SYSTEMS,C00026,5,2017
Allerdale Borough Council,15500,Supplies & Services,Confidential Waste,Budget-Services,02/08/2017,210636,261.00,J DUFFY LTD T/A PW CONF BUS SERVICES,A01846,5,2017
Allerdale Borough Council,15810,Supplies & Services,IT Services,Software Licences,02/08/2017,210637,155.40,ORDNANCE SURVEY,A00105,5,2017
Allerdale Borough Council,10401,Employee Costs,Customer Services Pay Group,Agency Staff Costs,02/08/2017,210638,463.76,ADECCO RECRUITMENT,A00188,5,2017
Allerdale Borough Council,10401,Employee Costs,Housing & Health Pay Group,Agency Staff Costs,16/08/2017,210639,242.00,HAYS SPECIALIST RECRUITMENT LTD,A00280,5,2017
Allerdale Borough Council,15501,Supplies & Services,Estates,Consultants Fees,02/08/2017,210640,3000.00,JAMES ANDREW RECRUITMENT SOLUTIONS LTD,A02339,5,2017
Allerdale Borough Council,15811,Supplies & Services,IT Services,Software Maintenance,23/08/2017,210641,530.00,CRANFIELD UNIVERSITY,A01644,5,2017
Allerdale Borough Council,15506,Supplies & Services,Financial Planning & Economic Growth,Professional Services,02/08/2017,210642,18925.00,WALTON GOODLAND LTD,A01226,5,2017
Allerdale Borough Council,54100,Capital Expenditure,Keswick Public Toliets,Budget - Capital Grants,16/08/2017,210643,11250.00,HEALTHMATIC LIMITED,C00189,5,2017
Allerdale Borough Council,15506,Supplies & Services,Estates,Professional Services,16/08/2017,210644,3985.73,JONES LANG LASALLE LTD,A02454,5,2017
Allerdale Borough Council,15811,Supplies & Services,IT Services,Software Maintenance,16/08/2017,210645,1550.00,PETER LALLY & ASSOCIATES,A00288,5,2017
Allerdale Borough Council,15500,Supplies & Services,Customer Services Pay Group,Budget-Services,02/08/2017,210646,50.00,CITIZENS ADVICE BUREAU,A01181,5,2017
Allerdale Borough Council,12101,Premises,Corporate Property Maintenance,External Maintenance & Decoration,02/08/2017,210647,150.00,J DUFFY LTD T/A PW CONF BUS SERVICES,A01846,5,2017
Allerdale Borough Council,15508,Supplies & Services,Planning and Development,Subscriptions,02/08/2017,210648,225.00,POS ENTERPRISES,A00722,5,2017
Allerdale Borough Council,15102,Supplies & Services,Parking Services Pay Group,Equipment Repair & Maintenance,16/08/2017,210649,105.80,RELIANCE HIGH-TECH LTD,C00123,5,2017
Allerdale Borough Council,15501,Supplies & Services,Estates,Consultants Fees,02/08/2017,210650,1470.00,Redacted information - included personal information ,A02433,5,2017
Allerdale Borough Council,12403,Premises,Homelessness,Gas,02/08/2017,210651,71.22,N POWER,X00014,5,2017
Allerdale Borough Council,15704,Supplies & Services,IT Services,Mobile Phones,02/08/2017,210652,452.63,VODAFONE,A00551,5,2017
Allerdale Borough Council,12403,Premises,Homelessness,Gas,02/08/2017,210653,30.33,N POWER,X00014,5,2017
Allerdale Borough Council,15804,Supplies & Services,IT Services,Computer Data Lines B.T.,02/08/2017,210654,4015.50,BRITISH TELECOMMUNICATIONS,X00004,5,2017
Allerdale Borough Council,20100,Third Party Payments,Parking Services Pay Group,Budget-Partnership Services,,210655,-204.40,PATROL,A00952,5,2017
Allerdale Borough Council,15703,Supplies & Services,IT Services,Call Charges,02/08/2017,210656,1662.39,BRITISH TELECOMMUNICATIONS,X00004,5,2017
Allerdale Borough Council,16003,Supplies & Services,Off-street - Owned,Security of Cash Movements,02/08/2017,210657,694.26,G4S CASH SOLUTIONS (UK) LTD,A02421,5,2017
Allerdale Borough Council,14100,Transport,Parking Services Pay Group,Budget-Council Vehicles (Non-capital),02/08/2017,210658,367.64,ENTERPRISE RENT A CAR,A01367,5,2017
Allerdale Borough Council,14100,Transport,Parking Services Pay Group,Budget-Council Vehicles (Non-capital),02/08/2017,210659,367.64,ENTERPRISE RENT A CAR,A01367,5,2017
Allerdale Borough Council,51101,Capital Expenditure,New Leisure Facility,External Contractor Payments (Capital),09/08/2017,210660,1390.00,RAB CONSULTANTS LTD,A02311,5,2017
Allerdale Borough Council,16350,Supplies & Services,Off-street - Owned,Miscellaneous Expenses,02/08/2017,210661,402.70,3C PAYMENT LIMITED,A02382,5,2017
Allerdale Borough Council,15103,Supplies & Services,Environmental Initiatives,Purchase of Materials,02/08/2017,210662,79.62,OAKHURST GARDEN CENTRE,A01739,5,2017
Allerdale Borough Council,15506,Supplies & Services,Environmental Protection,Professional Services,02/08/2017,210663,1928.00,SITE ONE LTD,C00194,5,2017
Allerdale Borough Council,15506,Supplies & Services,Environmental Protection,Professional Services,02/08/2017,210664,600.00,SITE ONE LTD,C00194,5,2017
Allerdale Borough Council,15803,Supplies & Services,IT Services,Hardware Purchase,16/08/2017,210665,356.43,MISCO,A00125,5,2017
Allerdale Borough Council,15203,Supplies & Services,Solway Wetlands Project,Catering Costs and Consumables,02/08/2017,210666,1266.67,WHITE HEATHER (KIRKBRIDE) LTD,A02451,5,2017
Allerdale Borough Council,15803,Supplies & Services,IT Services,Hardware Purchase,16/08/2017,210667,3543.16,MISCO,A00125,5,2017
Allerdale Borough Council,15203,Supplies & Services,Members Services,Catering Costs and Consumables,16/08/2017,210668,24.10,KENT AND SUSSEX VENDING,A02127,5,2017
Allerdale Borough Council,14202,Transport,Chief Executive,Hire Car and petrol,02/08/2017,210669,68.63,ENTERPRISE RENT A CAR,A01367,5,2017
Allerdale Borough Council,15101,Supplies & Services,Recycling,Equipment Costs,02/08/2017,210670,7278.00,A & C WEBER UK LIMITED,A02372,5,2017
Allerdale Borough Council,21150,Transfer Payments,Arts Development,General Grants,02/08/2017,210671,450.00,FE ENGLAND INCOME,M01189,5,2017
Allerdale Borough Council,14203,Transport,Members Services,Mileage Allowances - Car,02/08/2017,210672,3.20,Redacted information - included personal information ,M00260,5,2017
Allerdale Borough Council,15203,Supplies & Services,Town Centre Management,Catering Costs and Consumables,02/08/2017,210673,56.10,SILLOTH CAFE,M01190,5,2017
Allerdale Borough Council,12402,Premises,Corporate Property Maintenance,Electricity,02/08/2017,210674,292.30,N POWER,X00015,5,2017
Allerdale Borough Council,12402,Premises,Corporate Property Maintenance,Electricity,02/08/2017,210675,18.03,BRITISH GAS,X00039,5,2017
Allerdale Borough Council,12402,Premises,Corporate Property Maintenance,Electricity,02/08/2017,210676,204.65,BES COMMERCIAL ELECTRICITY LTD,X00243,5,2017
Allerdale Borough Council,12402,Premises,Corporate Property Maintenance,Electricity,02/08/2017,210677,25.08,BRITISH GAS,X00039,5,2017
Allerdale Borough Council,16301,Supplies & Services,Sports Development,Reimbursement,02/08/2017,210678,135.00,GREENWICH LEISURE LTD (PREV CARLISLE LEISURE),A00136,5,2017
Allerdale Borough Council,15203,Supplies & Services,Localities & Partnerships,Catering Costs and Consumables,02/08/2017,210679,274.00,HER CITI,A00441,5,2017
Allerdale Borough Council,15812,Supplies & Services,Shared Revs & Bens IT Costs,Software Development,02/08/2017,210680,49768.58,CARLISLE CITY COUNCIL,A00161,5,2017
Allerdale Borough Council,15101,Supplies & Services,Public Convenience Cleaning,Equipment Costs,02/08/2017,210681,815.02,INSTOCK (CHANDLERS),A00050,5,2017
Allerdale Borough Council,15506,Supplies & Services,Solway Wetlands Project,Professional Services,02/08/2017,210682,9100.00,Redacted information - included personal information ,C00183,5,2017
Allerdale Borough Council,15601,Supplies & Services,Corporate Postage and Stationary,Postage,02/08/2017,210683,806.75,UK MAIL GROUP PLC,A02371,5,2017
Allerdale Borough Council,15601,Supplies & Services,Corporate Postage and Stationary,Postage,09/08/2017,210684,1109.22,UK MAIL GROUP PLC,A02371,5,2017
Allerdale Borough Council,15601,Supplies & Services,Corporate Postage and Stationary,Postage,16/08/2017,210685,729.97,UK MAIL GROUP PLC,A02371,5,2017
Allerdale Borough Council,21150,Transfer Payments,GP Accommodation Scheme,General Grants,02/08/2017,210686,6240.00,IMPACT HOUSING ASSOCIATION LTD,A00236,5,2017
Allerdale Borough Council,10401,Employee Costs,Customer Services Pay Group,Agency Staff Costs,02/08/2017,210687,463.76,ADECCO RECRUITMENT,A00188,5,2017
Allerdale Borough Council,14101,Transport,Parking Services Pay Group,Vehicle Leasing,02/08/2017,210688,1116.09,ENTERPRISE RENT A CAR,A01367,5,2017
Allerdale Borough Council,15506,Supplies & Services,Sports Development,Professional Services,02/08/2017,210689,160.00,WRIGHTS SPORT SERVICES,A01482,5,2017
Allerdale Borough Council,15102,Supplies & Services,MSCP equipment,Equipment Repair & Maintenance,09/08/2017,210690,2450.00,JJ GROUP (CONTRACTING) LTD,C00038,5,2017
Allerdale Borough Council,15303,Supplies & Services,Food and Occupational Health,Laundry,09/08/2017,210691,28.00,THE LAUNDRY STUDIO,A00225,5,2017
Allerdale Borough Council,15810,Supplies & Services,IT Services,Software Licences,16/08/2017,210692,635.00,OTECH LTD,A00141,5,2017
Allerdale Borough Council,15506,Supplies & Services,Environmental Protection,Professional Services,16/08/2017,210693,172.80,UNITED UTILITIES PLC,A01657,5,2017
Allerdale Borough Council,15501,Supplies & Services,Building Control Pay Group,Consultants Fees,09/08/2017,210694,2427.70,SOUTH MILFORD CONSULTING LTD,A02453,5,2017
Allerdale Borough Council,16300,Supplies & Services,Economic Regeneration,Budget-Miscellaneous,09/08/2017,210695,80.00,HER CITI,A00441,5,2017
Allerdale Borough Council,15803,Supplies & Services,IT Services,Hardware Purchase,23/08/2017,210696,43.56,MISCO,A00125,5,2017
Allerdale Borough Council,14150,Transport,Gates Travel,General-Council Vehicles (Non-Capital),23/08/2017,210697,1025.74,GATES TRAVEL,A01525,5,2017
Allerdale Borough Council,16101,Supplies & Services,Planning and Development,Statutory Notices,09/08/2017,210698,328.03,CUMBRIAN NEWSPAPERS LIMITED,A00869,5,2017
Allerdale Borough Council,15101,Supplies & Services,Corporate Property Maintenance,Equipment Costs,09/08/2017,210699,17.14,ALLERDALE BOROUGH COUNCIL,X00034,5,2017
Allerdale Borough Council,15812,Supplies & Services,Corporate Management,Software Development,09/08/2017,210700,411.00,CIVICA UK LIMITED,A00006,5,2017
Allerdale Borough Council,10401,Employee Costs,Housing & Health Pay Group,Agency Staff Costs,23/08/2017,210701,302.50,HAYS SPECIALIST RECRUITMENT LTD,A00280,5,2017
Allerdale Borough Council,15403,Supplies & Services,Chief Executive,Publications and Periodicals,09/08/2017,210702,11.20,P & D NEWSAGENTS,A00237,5,2017
Allerdale Borough Council,15506,Supplies & Services,Housing & Health Pay Group,Professional Services,09/08/2017,210703,782.70,TRACY HOWARD YOUR BEST OPTION,A02376,5,2017
Allerdale Borough Council,15506,Supplies & Services,Food and Occupational Health,Professional Services,09/08/2017,210704,235.00,MPM NORTH WEST LIMITED,A00113,5,2017
Allerdale Borough Council,12301,Premises,Corporate Property Maintenance,Security,09/08/2017,210705,60.00,PROTEC SYSTEMS,C00026,5,2017
Allerdale Borough Council,15400,Supplies & Services,Parking Services Pay Group,"Budget-Printing,Stationery & Office Supp",09/08/2017,210706,545.00,FIRPRESS PRINTERS,A00063,5,2017
Allerdale Borough Council,15505,Supplies & Services,Licensing Service,Licences,09/08/2017,210707,130.00,Redacted information - included personal information ,M01191,5,2017
Allerdale Borough Council,15514,Supplies & Services,Mayor's Fund,Public Entertainment,09/08/2017,210708,11.20,P & D NEWSAGENTS,A00237,5,2017
Allerdale Borough Council,12303,Premises,Corporate Property Maintenance,Window Cleaning,09/08/2017,210709,445.00,BORDERBRITE LTD,C00155,5,2017
Allerdale Borough Council,10110,Employee Costs,Busy Bees Childcare Scheme,Salary Sacrifice,09/08/2017,210710,74.33,COMPUTERSHARE VOUCHER SERVICES,A00991,5,2017
Allerdale Borough Council,10110,Employee Costs,Busy Bees Childcare Scheme,Salary Sacrifice,09/08/2017,210711,1351.50,COMPUTERSHARE VOUCHER SERVICES,A00991,5,2017
Allerdale Borough Council,15811,Supplies & Services,IT Services,Software Maintenance,23/08/2017,210712,89.60,PHOENIX SOFTWARE LTD,A00229,5,2017
Allerdale Borough Council,16302,Supplies & Services,Sports Development,Room Hire,09/08/2017,210713,40.00,ENTRA,A02331,5,2017
Allerdale Borough Council,15401,Supplies & Services,Document Management Pay Group,General Stationery,23/08/2017,210714,174.12,LYRECO,A00043,5,2017
Allerdale Borough Council,14104,Transport,Property Services Pay Group,Repairs & Maintenance,09/08/2017,210715,120.01,GOODFELLOW & SONS,A00031,5,2017
Allerdale Borough Council,15400,Supplies & Services,Communications and Marketing,"Budget-Printing,Stationery & Office Supp",09/08/2017,210716,6.25,K&R BADGES LIMITED,A01328,5,2017
Allerdale Borough Council,15400,Supplies & Services,Communications and Marketing,"Budget-Printing,Stationery & Office Supp",09/08/2017,210717,21.55,K&R BADGES LIMITED,A01328,5,2017
Allerdale Borough Council,15400,Supplies & Services,Communications and Marketing,"Budget-Printing,Stationery & Office Supp",09/08/2017,210718,19.85,K&R BADGES LIMITED,A01328,5,2017
Allerdale Borough Council,15101,Supplies & Services,Domestic Waste,Equipment Costs,09/08/2017,210719,15301.00,A & C WEBER UK LIMITED,A02372,5,2017
Allerdale Borough Council,75101,Holding and Control Accounts,Domestic Waste,Income Tax (Control Account),09/08/2017,210720,4210.00,A & C WEBER UK LIMITED,A02372,5,2017
Allerdale Borough Council,14104,Transport,Public Convenience Cleaning,Repairs & Maintenance,09/08/2017,210721,81.66,GOODFELLOW & SONS,A00031,5,2017
Allerdale Borough Council,15401,Supplies & Services,Corporate Postage and Stationary,General Stationery,23/08/2017,210722,316.28,LYRECO,A00043,5,2017
Allerdale Borough Council,15401,Supplies & Services,Corporate Postage and Stationary,General Stationery,23/08/2017,210723,110.50,LYRECO,A00043,5,2017
Allerdale Borough Council,12309,Premises,Corporate Property Maintenance,Fire and Safety,09/08/2017,210724,50.00,PROTEC SYSTEMS,C00026,5,2017
Allerdale Borough Council,12201,Premises,Corporate Property Maintenance,Internal Maintenance,09/08/2017,210725,524.00,Redacted information - included personal information ,C00008,5,2017
Allerdale Borough Council,12103,Premises,Coastal Protection and Inland Flooding,Grounds Maintenance,09/08/2017,210726,3640.00,MPM NORTH WEST LIMITED,A00113,5,2017
Allerdale Borough Council,15401,Supplies & Services,Building Control - Chargeable,General Stationery,09/08/2017,210727,92.29,HEATONS OFFICE SOLUTION (PREV LAKELAND/INTEGRITY),A00069,5,2017
Allerdale Borough Council,70104,VAT,Input VAT,VAT - 20%,09/08/2017,210728,500.81,N POWER,X00015,5,2017
Allerdale Borough Council,15601,Supplies & Services,County Council Elections,Postage,09/08/2017,210729,7869.50,ROYAL MAIL LETTERS,X00021,5,2017
Allerdale Borough Council,15601,Supplies & Services,Electoral Registration,Postage,09/08/2017,210730,41.00,ROYAL MAIL LETTERS,X00021,5,2017
Allerdale Borough Council,15101,Supplies & Services,MSCP equipment,Equipment Costs,09/08/2017,210731,296.28,ALLERDALE BOROUGH COUNCIL,X00034,5,2017
Allerdale Borough Council,15405,Supplies & Services,Off-street - Owned,Use of External Printers,09/08/2017,210732,151.20,NAGELS UK LTD,A01182,5,2017
Allerdale Borough Council,15405,Supplies & Services,Off-street - Owned,Use of External Printers,16/08/2017,210733,595.00,METRIC GROUP LTD,A00568,5,2017
Allerdale Borough Council,15501,Supplies & Services,Solway Wetlands Project,Consultants Fees,09/08/2017,210734,9990.00,SHIRLEY MUIR ASSOCIATES LTD,A02142,5,2017
Allerdale Borough Council,12101,Premises,Public Convenience Cleaning,External Maintenance & Decoration,09/08/2017,210735,540.00,Redacted information - included personal information ,C00008,5,2017
Allerdale Borough Council,12101,Premises,Public Convenience Cleaning,External Maintenance & Decoration,09/08/2017,210736,860.00,Redacted information - included personal information ,C00008,5,2017
Allerdale Borough Council,14101,Transport,Homelessness,Vehicle Leasing,09/08/2017,210737,171.74,DOBIES VAUXHALL,A00254,5,2017
Allerdale Borough Council,15502,Supplies & Services,Revenue,Land Registry Fees,01/08/2017,210738,3.00,HM LAND REGISTRY,A00505,5,2017
Allerdale Borough Council,15502,Supplies & Services,Legal Services,Land Registry Fees,08/08/2017,210739,63.00,HM LAND REGISTRY,A00505,5,2017
Allerdale Borough Council,54105,Capital Expenditure,Disabled Facilities Grants,Grants  Private Individuals (Capital),16/08/2017,210740,4150.00,DOLPHIN STAIRLIFTS CUMBRIA,X00107,5,2017
Allerdale Borough Council,54105,Capital Expenditure,Disabled Facilities Grants,Grants  Private Individuals (Capital),16/08/2017,210741,5926.16,K BAILIFF & SON LIMITED,X00116,5,2017
Allerdale Borough Council,15101,Supplies & Services,Homelessness,Equipment Costs,16/08/2017,210742,59.24,ALLERDALE BOROUGH COUNCIL,X00034,5,2017
Allerdale Borough Council,54105,Capital Expenditure,Disabled Facilities Grants,Grants  Private Individuals (Capital),16/08/2017,210743,4635.00,HANDICARE ACCESSIBILITY LTD,X00211,5,2017
Allerdale Borough Council,16102,Supplies & Services,Town Centre Management,Regeneration Initiatives,16/08/2017,210744,170.00,THE FESTIVE LIGHTING CO LTD,A02208,5,2017
Allerdale Borough Council,15501,Supplies & Services,Building Control - Chargeable,Consultants Fees,16/08/2017,210745,255.00,BINGHAM YATES LIMITED,A02144,5,2017
Allerdale Borough Council,15501,Supplies & Services,Estates,Consultants Fees,16/08/2017,210746,1470.00,Redacted information - included personal information ,A02433,5,2017
Allerdale Borough Council,16102,Supplies & Services,Tourism Incentive,Regeneration Initiatives,16/08/2017,210747,10000.00,SOLFEST LTD,A01060,5,2017
Allerdale Borough Council,16350,Supplies & Services,Allerdale Options,Miscellaneous Expenses,31/08/2017,210748,2766.63,BARCLAYCARD COMMERCIAL,X00207,5,2017
Allerdale Borough Council,10202,Employee Costs,Human Resources Pay Group,Medical Screening,31/08/2017,210749,460.84,BARCLAYCARD COMMERCIAL,X00207,5,2017
Allerdale Borough Council,16001,Supplies & Services,Banking and Interest,Bank Charges and Fees,16/08/2017,210751,15.44,ALLPAY.NET LIMITED,A00714,5,2017
Allerdale Borough Council,16001,Supplies & Services,Banking and Interest,Bank Charges and Fees,16/08/2017,210752,15.44,ALLPAY.NET LIMITED,A00714,5,2017
Allerdale Borough Council,16001,Supplies & Services,Banking and Interest,Bank Charges and Fees,16/08/2017,210753,15.44,ALLPAY.NET LIMITED,A00714,5,2017
Allerdale Borough Council,16001,Supplies & Services,Banking and Interest,Bank Charges and Fees,16/08/2017,210754,18.47,ALLPAY.NET LIMITED,A00714,5,2017
Allerdale Borough Council,16001,Supplies & Services,Banking and Interest,Bank Charges and Fees,16/08/2017,210755,19.80,ALLPAY.NET LIMITED,A00714,5,2017
Allerdale Borough Council,16001,Supplies & Services,Banking and Interest,Bank Charges and Fees,16/08/2017,210756,20.66,ALLPAY.NET LIMITED,A00714,5,2017
Allerdale Borough Council,16001,Supplies & Services,Banking and Interest,Bank Charges and Fees,16/08/2017,210757,73.81,ALLPAY.NET LIMITED,A00714,5,2017
Allerdale Borough Council,16001,Supplies & Services,Banking and Interest,Bank Charges and Fees,16/08/2017,210758,1631.33,ALLPAY.NET LIMITED,A00714,5,2017
Allerdale Borough Council,16001,Supplies & Services,Banking and Interest,Bank Charges and Fees,16/08/2017,210759,30.69,ALLPAY.NET LIMITED,A00714,5,2017
Allerdale Borough Council,16001,Supplies & Services,Banking and Interest,Bank Charges and Fees,16/08/2017,210760,31.13,ALLPAY.NET LIMITED,A00714,5,2017
Allerdale Borough Council,15501,Supplies & Services,Estates,Consultants Fees,16/08/2017,210761,1470.00,Redacted information - included personal information ,A02433,5,2017
Allerdale Borough Council,15501,Supplies & Services,Solway Wetlands Project,Consultants Fees,16/08/2017,210762,1950.00,Redacted information - included personal information ,A02457,5,2017
Allerdale Borough Council,20101,Third Party Payments,Public Convenience Cleaning,Cleansing Contract,16/08/2017,210763,650.00,Redacted information - included personal information ,A00165,5,2017
Allerdale Borough Council,15501,Supplies & Services,Solway Wetlands Project,Consultants Fees,16/08/2017,210764,800.00,CREATIVE HORIZONS CUMBRIA,A02277,5,2017
Allerdale Borough Council,15506,Supplies & Services,Estates,Professional Services,16/08/2017,210765,290.00,SPATIAL DATA LTD,A02456,5,2017
Allerdale Borough Council,15501,Supplies & Services,Planning Policy,Consultants Fees,16/08/2017,210766,25000.00,CUMBRIA CC,A00066,5,2017
Allerdale Borough Council,16101,Supplies & Services,Planning and Development,Statutory Notices,16/08/2017,210767,410.04,CUMBRIAN NEWSPAPERS LIMITED,A00869,5,2017
Allerdale Borough Council,15804,Supplies & Services,Shared Revs & Bens IT Costs,Computer Data Lines B.T.,16/08/2017,210768,25058.24,CARLISLE CITY COUNCIL,A00161,5,2017
Allerdale Borough Council,15804,Supplies & Services,Shared Revs & Bens IT Costs,Computer Data Lines B.T.,16/08/2017,210769,9207.18,CARLISLE CITY COUNCIL,A00161,5,2017
Allerdale Borough Council,15804,Supplies & Services,Shared Revs & Bens IT Costs,Computer Data Lines B.T.,16/08/2017,210770,2979.21,CARLISLE CITY COUNCIL,A00161,5,2017
Allerdale Borough Council,15508,Supplies & Services,Building Control - Chargeable,Subscriptions,16/08/2017,210771,2540.00,CARLISLE CITY COUNCIL,A00161,5,2017
Allerdale Borough Council,16150,Supplies & Services,Legal Services,General Promotions,16/08/2017,210772,560.95,CN EVENTS MANAGEMENT,A01099,5,2017
Allerdale Borough Council,15604,Supplies & Services,Customer Services Pay Group,Franking Machine refills,16/08/2017,210774,205.50,FP TELESET,A00428,5,2017
Allerdale Borough Council,15101,Supplies & Services,County Council Elections,Equipment Costs,16/08/2017,210775,258.00,PAKFLATT (UK) LTD,A00810,5,2017
Allerdale Borough Council,20101,Third Party Payments,Recycling,Cleansing Contract,16/08/2017,210776,127.56,CUMBRIA WASTE MANAGEMENT LTD,A01304,5,2017
Allerdale Borough Council,20101,Third Party Payments,Recycling,Cleansing Contract,16/08/2017,210777,1729.42,CUMBRIA WASTE MANAGEMENT LTD,A01304,5,2017
Allerdale Borough Council,20101,Third Party Payments,Recycling,Cleansing Contract,16/08/2017,210778,278.96,CUMBRIA WASTE MANAGEMENT LTD,A01304,5,2017
Allerdale Borough Council,20101,Third Party Payments,Recycling,Cleansing Contract,16/08/2017,210779,2602.95,CUMBRIA WASTE MANAGEMENT LTD,A01304,5,2017
Allerdale Borough Council,20101,Third Party Payments,Recycling,Cleansing Contract,16/08/2017,210780,3008.58,CUMBRIA WASTE MANAGEMENT LTD,A01304,5,2017
Allerdale Borough Council,20101,Third Party Payments,Recycling,Cleansing Contract,16/08/2017,210781,2683.73,CUMBRIA WASTE MANAGEMENT LTD,A01304,5,2017
Allerdale Borough Council,20101,Third Party Payments,Recycling,Cleansing Contract,16/08/2017,210782,3094.66,CUMBRIA WASTE MANAGEMENT LTD,A01304,5,2017
Allerdale Borough Council,20101,Third Party Payments,Recycling,Cleansing Contract,16/08/2017,210783,3116.74,CUMBRIA WASTE MANAGEMENT LTD,A01304,5,2017
Allerdale Borough Council,20101,Third Party Payments,Recycling,Cleansing Contract,16/08/2017,210784,2757.88,CUMBRIA WASTE MANAGEMENT LTD,A01304,5,2017
Allerdale Borough Council,12103,Premises,Harrington Harbour,Grounds Maintenance,16/08/2017,210785,1546.00,JOHN ELLIOTT LIMITED,C00023,5,2017
Allerdale Borough Council,15302,Supplies & Services,Planning and Development,Protective Clothing,16/08/2017,210786,70.50,THOMAS ARMSTRONG - LINDEN/KAYTOOLS,A00091,5,2017
Allerdale Borough Council,15103,Supplies & Services,Solway Wetlands Project,Purchase of Materials,16/08/2017,210787,200.00,@CYBERCAFE,A02445,5,2017
Allerdale Borough Council,15810,Supplies & Services,IT Services,Software Licences,23/08/2017,210788,334.00,DATA INTERCHANGE PLC,A01316,5,2017
Allerdale Borough Council,10401,Employee Costs,Customer Services Pay Group,Agency Staff Costs,16/08/2017,210789,463.76,ADECCO RECRUITMENT,A00188,5,2017
Allerdale Borough Council,12301,Premises,Corporate Property Maintenance,Security,16/08/2017,210790,130.00,PROTEC SYSTEMS,C00026,5,2017
Allerdale Borough Council,15506,Supplies & Services,Solway Wetlands Project,Professional Services,16/08/2017,210791,250.00,Redacted information - included personal information ,C00183,5,2017
Allerdale Borough Council,15500,Supplies & Services,Customer Services Pay Group,Budget-Services,16/08/2017,210792,50.00,CITIZENS ADVICE BUREAU,A01181,5,2017
Allerdale Borough Council,15601,Supplies & Services,Corporate Postage and Stationary,Postage,23/08/2017,210793,908.98,UK MAIL GROUP PLC,A02371,5,2017
Allerdale Borough Council,15402,Supplies & Services,Customer Services Pay Group,Photocopier Charges,16/08/2017,210794,0.98,RICOH UK LTD,A00037,5,2017
Allerdale Borough Council,20101,Third Party Payments,Recycling,Cleansing Contract,16/08/2017,210795,2748.58,CUMBRIA WASTE MANAGEMENT LTD,A01304,5,2017
Allerdale Borough Council,20101,Third Party Payments,Recycling,Cleansing Contract,16/08/2017,210796,214.96,CUMBRIA WASTE MANAGEMENT LTD,A01304,5,2017
Allerdale Borough Council,10401,Employee Costs,Finance and Accounting Pay Group,Agency Staff Costs,30/08/2017,210797,269.96,HAYS SPECIALIST RECRUITMENT LTD,A00280,5,2017
Allerdale Borough Council,15601,Supplies & Services,Corporate Postage and Stationary,Postage,30/08/2017,210798,767.20,UK MAIL GROUP PLC,A02371,5,2017
Allerdale Borough Council,20150,Third Party Payments,Footways,General Partnership Service Fees,16/08/2017,210799,183.00,Redacted information - included personal information ,A00176,5,2017
Allerdale Borough Council,10401,Employee Costs,Governance Support Assistants,Agency Staff Costs,16/08/2017,210800,179.40,ADECCO RECRUITMENT,A00188,5,2017
Allerdale Borough Council,10401,Employee Costs,Customer Services Pay Group,Agency Staff Costs,16/08/2017,210801,463.76,ADECCO RECRUITMENT,A00188,5,2017
Allerdale Borough Council,10401,Employee Costs,Governance Support Assistants,Agency Staff Costs,16/08/2017,210802,483.00,ADECCO RECRUITMENT,A00188,5,2017
Allerdale Borough Council,10604,Employee Costs,Director of Resources & PA,Hire of Training Rooms/Venues,16/08/2017,210803,35.00,COCKERMOUTH TOWN COUNCIL,A00586,5,2017
Allerdale Borough Council,15101,Supplies & Services,Corporate Property Maintenance,Equipment Costs,16/08/2017,210804,2760.00,THOMAS ARMSTRONG - CONSTRUCT,C00003,5,2017
Allerdale Borough Council,72104,Holding and Control Accounts,Debtor Control Account,Debtors (Control Account),16/08/2017,210805,20.80,Redacted information - included personal information ,M01192,5,2017
Allerdale Borough Council,54105,Capital Expenditure,Disabled Facilities Grants,Grants  Private Individuals (Capital),16/08/2017,210806,3475.00,BLUE FLAME SERVICES LTD,X00213,5,2017
Allerdale Borough Council,54105,Capital Expenditure,Disabled Facilities Grants,Grants  Private Individuals (Capital),16/08/2017,210807,2250.00,DOLPHIN STAIRLIFTS CUMBRIA,X00107,5,2017
Allerdale Borough Council,16350,Supplies & Services,Homelessness,Miscellaneous Expenses,16/08/2017,210808,325.00,Redacted information - included personal information ,M01193,5,2017
Allerdale Borough Council,20150,Third Party Payments,Festivals & Events,General Partnership Service Fees,16/08/2017,210809,10120.00,CN EVENTS MANAGEMENT,A01099,5,2017
Allerdale Borough Council,12309,Premises,Corporate Property Maintenance,Fire and Safety,16/08/2017,210810,160.20,PROTEC SYSTEMS,C00026,5,2017
Allerdale Borough Council,33113,Income,Building Control - Chargeable,Building Control Fees Income,16/08/2017,210811,127.83,Redacted information - included personal information ,M01194,5,2017
Allerdale Borough Council,16102,Supplies & Services,Town Centres,Regeneration Initiatives,16/08/2017,210812,7000.00,WIGTON TOWN COUNCIL,M00517,5,2017
Allerdale Borough Council,26000,Earmarked Reserves,Corporate Priorities,Budget-Expd funded from Reserve,16/08/2017,210813,2000.00,DEARHAM P.C.,X00068,5,2017
Allerdale Borough Council,54105,Capital Expenditure,Disabled Facilities Grants,Grants  Private Individuals (Capital),16/08/2017,210814,9521.00,MAYSON BROS LTD,X00132,5,2017
Allerdale Borough Council,15804,Supplies & Services,IT Services,Computer Data Lines B.T.,23/08/2017,210815,1642.21,VODAFONE (PREV CABLE & WIRELESS),A00934,5,2017
Allerdale Borough Council,15601,Supplies & Services,Benefits,Postage,16/08/2017,210816,1021.06,ROYAL MAIL LETTERS,X00021,5,2017
Allerdale Borough Council,12408,Premises,Public Convenience Cleaning,Water & Sewage,16/08/2017,210817,239.01,UNITED UTILITIES,X00011,5,2017
Allerdale Borough Council,12408,Premises,Public Convenience Cleaning,Water & Sewage,16/08/2017,210818,16.91,UNITED UTILITIES,X00011,5,2017
Allerdale Borough Council,12408,Premises,Public Convenience Cleaning,Water & Sewage,16/08/2017,210819,39.72,UNITED UTILITIES,X00011,5,2017
Allerdale Borough Council,12408,Premises,Public Convenience Cleaning,Water & Sewage,16/08/2017,210820,166.24,UNITED UTILITIES ,X00011,5,2017
Allerdale Borough Council,12408,Premises,Corporate Property Maintenance,Water & Sewage,16/08/2017,210821,140.10,UNITED UTILITIES,X00011,5,2017
Allerdale Borough Council,12408,Premises,Corporate Property Maintenance,Water & Sewage,16/08/2017,210822,171.55,UNITED UTILITIES ,X00011,5,2017
Allerdale Borough Council,12408,Premises,Public Convenience Cleaning,Water & Sewage,16/08/2017,210823,33.71,UNITED UTILITIES,X00011,5,2017
Allerdale Borough Council,12402,Premises,Corporate Property Maintenance,Electricity,16/08/2017,210824,490.55,N POWER,X00015,5,2017
Allerdale Borough Council,12408,Premises,Corporate Property Maintenance,Water & Sewage,16/08/2017,210825,251.60,UNITED UTILITIES ,X00011,5,2017
Allerdale Borough Council,12408,Premises,Corporate Property Maintenance,Water & Sewage,16/08/2017,210826,377.72,UNITED UTILITIES,X00011,5,2017
Allerdale Borough Council,10401,Employee Costs,Finance and Accounting Pay Group,Agency Staff Costs,16/08/2017,210827,357.30,HAYS SPECIALIST RECRUITMENT LTD,A00280,5,2017
Allerdale Borough Council,10401,Employee Costs,Finance and Accounting Pay Group,Agency Staff Costs,23/08/2017,210828,190.56,HAYS SPECIALIST RECRUITMENT LTD,A00280,5,2017
Allerdale Borough Council,15803,Supplies & Services,IT Costs (Allerdale Only),Hardware Purchase,23/08/2017,210829,251.90,MISCO,A00125,5,2017
Allerdale Borough Council,15803,Supplies & Services,IT Costs (Allerdale Only),Hardware Purchase,23/08/2017,210830,3620.95,MISCO,A00125,5,2017
Allerdale Borough Council,10401,Employee Costs,Finance and Accounting Pay Group,Agency Staff Costs,23/08/2017,210831,373.18,HAYS SPECIALIST RECRUITMENT LTD,A00280,5,2017
Allerdale Borough Council,15400,Supplies & Services,Communications and Marketing,"Budget-Printing,Stationery & Office Supp",23/08/2017,210832,6.25,K&R BADGES LIMITED,A01328,5,2017
Allerdale Borough Council,15101,Supplies & Services,Corporate Property Maintenance,Equipment Costs,16/08/2017,210833,100.99,STEVES PAINT LTD,A00119,5,2017
Allerdale Borough Council,16150,Supplies & Services,Coastal Community Teams,General Promotions,16/08/2017,210834,28273.00,ROLAND HILL (PARSONBY) LTD,C00010,5,2017
Allerdale Borough Council,15812,Supplies & Services,IT Services,Software Development,23/08/2017,210835,5950.00,ASTUN TECHNOLOGY LIMITED,A01234,5,2017
Allerdale Borough Council,15506,Supplies & Services,Environmental Protection,Professional Services,06/09/2017,210836,2690.00,ACOUSTIC1 LIMITED,A02437,5,2017
Allerdale Borough Council,15101,Supplies & Services,Housing Strategic Function,Equipment Costs,30/08/2017,210837,500.00,BUILDING RESEARCH ESTABLISHMENT LTD,A02207,5,2017
Allerdale Borough Council,15813,Supplies & Services,Shared ICT Costs,Software Miscellaneous,06/09/2017,210838,2162.19,BYTES SOFTWARE SERVICES LTD,A02461,5,2017
Allerdale Borough Council,15101,Supplies & Services,Homelessness,Equipment Costs,06/09/2017,210839,70.68,ARGOS BUSINESS SOLUTION-STORE COLLECTION,A00411,5,2017
Allerdale Borough Council,12402,Premises,Corporate Property Maintenance,Electricity,16/08/2017,210840,2449.86,N POWER ,X00015,5,2017
Allerdale Borough Council,12402,Premises,Corporate Property Maintenance,Electricity,16/08/2017,210841,1426.87,N POWER,X00015,5,2017
Allerdale Borough Council,12402,Premises,Corporate Property Maintenance,Electricity,16/08/2017,210842,1415.22,N POWER ,X00015,5,2017
Allerdale Borough Council,12402,Premises,Corporate Property Maintenance,Electricity,16/08/2017,210843,1498.73,N POWER ,X00015,5,2017
Allerdale Borough Council,12201,Premises,Corporate Property Maintenance,Internal Maintenance,16/08/2017,210844,121.67,FLOORCHOICE LIMITED,M01195,5,2017
Allerdale Borough Council,12101,Premises,Public Convenience Cleaning,External Maintenance & Decoration,16/08/2017,210845,878.00,Redacted information - included personal information ,C00008,5,2017
Allerdale Borough Council,12305,Premises,Corporate Property Maintenance,Inspections and Services,16/08/2017,210846,492.00,BORDER FOOD MACHINERY,A00388,5,2017
Allerdale Borough Council,15501,Supplies & Services,Planning Policy,Consultants Fees,16/08/2017,210847,1642.50,G2 RECRUITMENT SOLUTIONS LTD,C00198,5,2017
Allerdale Borough Council,12301,Premises,Corporate Property Maintenance,Security,16/08/2017,210848,65.00,PROTEC SYSTEMS,C00026,5,2017
Allerdale Borough Council,12408,Premises,Public Convenience Cleaning,Water & Sewage,16/08/2017,210849,177.00,UNITED UTILITIES ,X00011,5,2017
Allerdale Borough Council,12408,Premises,Public Convenience Cleaning,Water & Sewage,16/08/2017,210850,1347.98,UNITED UTILITIES,X00011,5,2017
Allerdale Borough Council,12408,Premises,Public Convenience Cleaning,Water & Sewage,16/08/2017,210851,-1170.98,UNITED UTILITIES,X00011,5,2017
Allerdale Borough Council,12408,Premises,Public Convenience Cleaning,Water & Sewage,16/08/2017,210852,1239.96,UNITED UTILITIES,X00011,5,2017
Allerdale Borough Council,12408,Premises,Corporate Property Maintenance,Water & Sewage,16/08/2017,210853,1089.30,UNITED UTILITIES ,X00011,5,2017
Allerdale Borough Council,12402,Premises,Corporate Property Maintenance,Electricity,16/08/2017,210854,1360.20,N POWER,X00015,5,2017
Allerdale Borough Council,12402,Premises,Corporate Property Maintenance,Electricity,16/08/2017,210855,2417.24,N POWER ,X00015,5,2017
Allerdale Borough Council,12408,Premises,Corporate Property Maintenance,Water & Sewage,16/08/2017,210856,2799.40,UNITED UTILITIES ,X00011,5,2017
Allerdale Borough Council,12408,Premises,Public Convenience Cleaning,Water & Sewage,16/08/2017,210857,-177.00,UNITED UTILITIES,X00011,5,2017
Allerdale Borough Council,12402,Premises,Car Parks Inspection & Maintenance,Electricity,16/08/2017,210858,90.79,N POWER ,X00015,5,2017
Allerdale Borough Council,12402,Premises,Footways,Electricity,16/08/2017,210859,5343.47,N POWER,X00015,5,2017
Allerdale Borough Council,33112,Income,Planning and Development,Planning Fees Income,16/08/2017,210860,190.00,BURNETTS SOLICITORS,A00129,5,2017
Allerdale Borough Council,15501,Supplies & Services,Parks Development,Consultants Fees,30/08/2017,210861,999.54,CONIBEAR DESIGN ASSOCIATES (CDA),A02347,5,2017
Allerdale Borough Council,12202,Premises,Footways,Electrical Repairs and Service,16/08/2017,210862,1575.50,JJ GROUP (CONTRACTING) LTD,C00038,5,2017
Allerdale Borough Council,15501,Supplies & Services,Human Resources Pay Group,Consultants Fees,23/08/2017,210863,4190.30,Redacted information - included personal information ,A02373,5,2017
Allerdale Borough Council,10302,Employee Costs,Pensions,Past Service Costs,23/08/2017,210864,144.56,YOUR PENSION SERVICE - PRESTON,A01465,5,2017
Allerdale Borough Council,12301,Premises,Corporate Property Maintenance,Security,16/08/2017,210865,130.00,PROTEC SYSTEMS,C00026,5,2017
Allerdale Borough Council,10401,Employee Costs,Housing & Health Pay Group,Agency Staff Costs,06/09/2017,210866,242.00,HAYS SPECIALIST RECRUITMENT LTD,A00280,5,2017
Allerdale Borough Council,10401,Employee Costs,Housing & Health Pay Group,Agency Staff Costs,30/08/2017,210867,302.50,HAYS SPECIALIST RECRUITMENT LTD,A00280,5,2017
Allerdale Borough Council,15506,Supplies & Services,Housing & Health Pay Group,Professional Services,30/08/2017,210868,272.00,OSBORNE RICHARDSON,A00206,5,2017
Allerdale Borough Council,15501,Supplies & Services,Revenue,Consultants Fees,30/08/2017,210869,16599.42,CAPACITYGRID T/A LIBERATA UK LTD,C00122,5,2017
Allerdale Borough Council,15812,Supplies & Services,IT Services,Software Development,30/08/2017,210870,52.03,ASTUN TECHNOLOGY LIMITED,A01234,5,2017
Allerdale Borough Council,10401,Employee Costs,Environmental Services Pay Group,Agency Staff Costs,23/08/2017,210871,9450.00,M P HEATH WASTE CONSULTANCY LTD,A02428,5,2017
Allerdale Borough Council,15405,Supplies & Services,Electoral Registration,Use of External Printers,23/08/2017,210872,2098.12,ADARE SEC LIMITED,A02306,5,2017
Allerdale Borough Council,12405,Premises,Multi-storey Car Park,Rentals and Lease Charges,23/08/2017,210873,72574.91,SCOOP AM LLP,A02086,5,2017
Allerdale Borough Council,15101,Supplies & Services,Mayoral Services,Equipment Costs,30/08/2017,210874,45.71,HAMPSHIRE FLAG COMPANY,A02460,5,2017
Allerdale Borough Council,15405,Supplies & Services,Electoral Registration,Use of External Printers,30/08/2017,210875,3373.39,ADARE SEC LIMITED,A02306,5,2017
Allerdale Borough Council,15811,Supplies & Services,IT Services,Software Maintenance,23/08/2017,210876,6735.15,HALAROSE LIMITED,A00012,5,2017
Allerdale Borough Council,15101,Supplies & Services,Public Building Cleaning,Equipment Costs,23/08/2017,210877,111.12,WF HYGIENE & CLEANING SUPPLIES,A01794,5,2017
Allerdale Borough Council,16101,Supplies & Services,Planning and Development,Statutory Notices,23/08/2017,210878,444.09,CUMBRIAN NEWSPAPERS LIMITED,A00869,5,2017
Allerdale Borough Council,16101,Supplies & Services,Planning and Development,Statutory Notices,23/08/2017,210879,430.54,CUMBRIAN NEWSPAPERS LIMITED,A00869,5,2017
Allerdale Borough Council,15203,Supplies & Services,Solway Wetlands Project,Catering Costs and Consumables,23/08/2017,210880,720.00,TONY HARRISONS BUTCHERS,A02452,5,2017
Allerdale Borough Council,12101,Premises,Car Parks Inspection & Maintenance,External Maintenance & Decoration,23/08/2017,210881,220.00,Redacted information - included personal information ,C00008,5,2017
Allerdale Borough Council,15811,Supplies & Services,IT Services,Software Maintenance,06/09/2017,210882,10000.00,CIVICA UK LIMITED,A00006,5,2017
Allerdale Borough Council,15603,Supplies & Services,Document Management Pay Group,Franking Machine Costs,23/08/2017,210883,300.00,THE MAILING ROOM (TMR EXECUTIVE AGENCY LTD),A00733,5,2017
Allerdale Borough Council,14105,Transport,Solway Coast AONB Core Funding,"Fuel, Lubricants & Consumables",06/09/2017,210884,66.66,ALPHA BATTERIES LTD,A02425,5,2017
Allerdale Borough Council,15518,Supplies & Services,Community Safety,Enforcement,23/08/2017,210885,110.00,CRIME REDUCTION SERVICES LTD,A02278,5,2017
Allerdale Borough Council,12405,Premises,Homelessness,Rentals and Lease Charges,23/08/2017,210886,300.00,CUMBERLAND HOTEL,A02415,5,2017
Allerdale Borough Council,15506,Supplies & Services,KMAG Enhancement Activity,Professional Services,23/08/2017,210887,1500.00,ARTLINK TRANSPORT & STORAGE LTD,A02362,5,2017
Allerdale Borough Council,16350,Supplies & Services,Museums,Miscellaneous Expenses,23/08/2017,210888,1500.00,ARTLINK TRANSPORT & STORAGE LTD,A02362,5,2017
Allerdale Borough Council,10302,Employee Costs,Pensions,Past Service Costs,23/08/2017,210889,38344.99,YOUR PENSION SERVICE - PRESTON,A01465,5,2017
Allerdale Borough Council,15101,Supplies & Services,MSCP equipment,Equipment Costs,23/08/2017,210890,100.00,ASHCROFT CONSTRUCTION (CUMBRIA) LTD,C00196,5,2017
Allerdale Borough Council,15100,Supplies & Services,MSCP equipment,"Budget-Equipment, Furniture & Materials",23/08/2017,210891,9497.90,COMPASS SERVICES GROUP,A00839,5,2017
Allerdale Borough Council,12101,Premises,Public Convenience Cleaning,External Maintenance & Decoration,23/08/2017,210892,304.00,Redacted information - included personal information ,C00008,5,2017
Allerdale Borough Council,15506,Supplies & Services,Estates,Professional Services,23/08/2017,210893,12267.00,KESWICK TOWN COUNCIL,A00253,5,2017
Allerdale Borough Council,12101,Premises,Corporate Property Maintenance,External Maintenance & Decoration,23/08/2017,210894,670.00,JOHN ELLIOTT LIMITED,C00023,5,2017
Allerdale Borough Council,16302,Supplies & Services,Sports Development,Room Hire,23/08/2017,210895,60.00,ALL SOULS PAROCHIAL CHURC COUNCIL,A02336,5,2017
Allerdale Borough Council,16302,Supplies & Services,Sports Development,Room Hire,23/08/2017,210896,80.00,ALL SOULS PAROCHIAL CHURC COUNCIL,A02336,5,2017
Allerdale Borough Council,10110,Employee Costs,Community Services Pay Group,Salary Sacrifice,23/08/2017,210897,2730.41,TUSKERDIRECT LTD,A02186,5,2017
Allerdale Borough Council,15805,Supplies & Services,IT Services,Computer Network,06/09/2017,210898,60.00,THUS/DEMON PLC/ (VODAFONE),A00598,5,2017
Allerdale Borough Council,15703,Supplies & Services,IT Services,Call Charges,23/08/2017,210899,1090.32,BRITISH TELECOMMUNICATIONS,X00004,5,2017
Allerdale Borough Council,15601,Supplies & Services,Corporate Postage and Stationary,Postage,23/08/2017,210900,249.30,ROYAL MAIL LETTERS,X00021,5,2017
Allerdale Borough Council,15601,Supplies & Services,Electoral Registration,Postage,23/08/2017,210901,2348.90,ROYAL MAIL LETTERS,X00021,5,2017
Allerdale Borough Council,15302,Supplies & Services,Pest Control,Protective Clothing,23/08/2017,210902,104.50,KILLGERM CHEMICALS LTD,A00361,5,2017
Allerdale Borough Council,16150,Supplies & Services,Town Centre Management,General Promotions,23/08/2017,210903,97.16,STEVES PAINT LTD,A00119,5,2017
Allerdale Borough Council,20300,Third Party Payments,Parks and Grounds Maintenance,Budget-Contract Services,23/08/2017,210904,54689.04,ISS WATERERS LANDSCAPE,C00044,5,2017
Allerdale Borough Council,21150,Transfer Payments,Carnegie Trust Contribution,General Grants,23/08/2017,210905,10000.00,CARNEGIE THEATRE TRUST,R00015,5,2017
Allerdale Borough Council,15501,Supplies & Services,Building Control Pay Group,Consultants Fees,23/08/2017,210906,2263.00,SOUTH MILFORD CONSULTING LTD,A02453,5,2017
Allerdale Borough Council,15505,Supplies & Services,Planning and Development,Licences,23/08/2017,210907,18.02,CENTREMAPS,A00512,5,2017
Allerdale Borough Council,12103,Premises,Corporate Property Maintenance,Grounds Maintenance,23/08/2017,210908,3600.00,ASHCROFT DEMOLITION (CUMBRIA) LTD,C00197,5,2017
Allerdale Borough Council,15506,Supplies & Services,Banking and Interest,Professional Services,23/08/2017,210909,188.00,CUMBRIA LGPS - CARLISLE,M00626,5,2017
Allerdale Borough Council,15501,Supplies & Services,Planning Policy,Consultants Fees,23/08/2017,210910,1698.75,G2 RECRUITMENT SOLUTIONS LTD,C00198,5,2017
Allerdale Borough Council,10401,Employee Costs,Finance and Accounting Pay Group,Agency Staff Costs,06/09/2017,210911,146.89,HAYS SPECIALIST RECRUITMENT LTD,A00280,5,2017
Allerdale Borough Council,15506,Supplies & Services,Housing & Health Pay Group,Professional Services,06/09/2017,210912,281.85,Redacted information - included personal information ,A00206,5,2017
Allerdale Borough Council,16350,Supplies & Services,Mayoral Services,Miscellaneous Expenses,23/08/2017,210913,79.50,JIM DAVIS PHOTOGRAPHY,A00627,5,2017
Allerdale Borough Council,15401,Supplies & Services,Corporate Postage and Stationary,General Stationery,23/08/2017,210914,181.88,TWOFOLD LTD ,A00317,5,2017
Allerdale Borough Council,15508,Supplies & Services,Housing Services Pay Group,Subscriptions,06/09/2017,210915,703.33,E S SINGLETON (SOLE TRADER TRADING AS SINGLELAW),A02072,5,2017
Allerdale Borough Council,12201,Premises,Corporate Property Maintenance,Internal Maintenance,23/08/2017,210916,600.00,KEVIN DICKINSON UPVC LTD,X00131,5,2017
Allerdale Borough Council,15803,Supplies & Services,IT Costs (Allerdale Only),Hardware Purchase,,210917,969.89,MISCO,A00125,5,2017
Allerdale Borough Council,10601,Employee Costs,Training,External Courses & Seminar Fees,30/08/2017,210918,51.00,DEFIBSHOP,A02054,5,2017
Allerdale Borough Council,10601,Employee Costs,Training,External Courses & Seminar Fees,,210919,1360.00,UNIVERSITY OF LIVERPOOL,A02168,5,2017
Allerdale Borough Council,15802,Supplies & Services,Shared ICT Costs,Hardware Maintenance,,210920,1358.54,NETCENTRIX LIMITED,A00106,5,2017
Allerdale Borough Council,15508,Supplies & Services,Environmental Initiatives,Subscriptions,23/08/2017,210921,4495.00,CIVIC TRUST (KEEP BRITAIN TIDY),A00728,5,2017
Allerdale Borough Council,73102,Holding and Control Accounts,Capital Project Retentions,Holding Accounts General - Expenditure,23/08/2017,210922,49930.31,ASHCROFT PLANT (CUMBRIA) LTD,C00018,5,2017
Allerdale Borough Council,14104,Transport,Parking Services Pay Group,Repairs & Maintenance,23/08/2017,210923,749.75,METRIC GROUP LTD,A00568,5,2017
Allerdale Borough Council,15102,Supplies & Services,Off-street - Owned,Equipment Repair & Maintenance,23/08/2017,210924,283.00,NAGELS UK LTD,A01182,5,2017
Allerdale Borough Council,15405,Supplies & Services,Domestic Waste,Use of External Printers,23/08/2017,210925,130.00,FIRPRESS PRINTERS,A00063,5,2017
Allerdale Borough Council,15102,Supplies & Services,Recycling,Equipment Repair & Maintenance,23/08/2017,210926,845.20,Redacted information - included personal information ,A00176,5,2017
Allerdale Borough Council,15102,Supplies & Services,Parking Services Pay Group,Equipment Repair & Maintenance,23/08/2017,210927,19.36,RELIANCE HIGH-TECH LTD,C00123,5,2017
Allerdale Borough Council,20304,Third Party Payments,Recycling,Contract Services-Recycling,23/08/2017,210928,370979.41,FCC ENVIRONMENT SERVICES (FOCSA),A00085,5,2017
Allerdale Borough Council,10401,Employee Costs,Governance Support Assistants,Agency Staff Costs,23/08/2017,210929,510.60,ADECCO RECRUITMENT,A00188,5,2017
Allerdale Borough Council,10401,Employee Costs,Housing & Health Pay Group,Agency Staff Costs,,210930,242.00,HAYS SPECIALIST RECRUITMENT LTD,A00280,5,2017
Allerdale Borough Council,10601,Employee Costs,Community Housing Fund,External Courses & Seminar Fees,,210931,94.50,RICS,A01217,5,2017
Allerdale Borough Council,15603,Supplies & Services,Document Management Pay Group,Franking Machine Costs,18/08/2017,210932,5000.00,FP TELESET,A00428,5,2017
Allerdale Borough Council,33118,Income,Off-street - Owned,Car Parks - Season Tickets Income,23/08/2017,210933,7.00,Redacted information - included personal information ,M01196,5,2017
Allerdale Borough Council,33118,Income,Off-street - Owned,Car Parks - Season Tickets Income,23/08/2017,210934,3.00,Redacted information - included personal information ,M01197,5,2017
Allerdale Borough Council,33118,Income,Off-street - Owned,Car Parks - Season Tickets Income,23/08/2017,210935,5.40,Redacted information - included personal information ,M01198,5,2017
Allerdale Borough Council,54105,Capital Expenditure,Cluster of Empty Homes,Grants  Private Individuals (Capital),23/08/2017,210936,500.00,Redacted information - included personal information ,M00642,5,2017
Allerdale Borough Council,54105,Capital Expenditure,Cluster of Empty Homes,Grants  Private Individuals (Capital),23/08/2017,210937,1500.00,Redacted information - included personal information ,M00642,5,2017
Allerdale Borough Council,54105,Capital Expenditure,Cluster of Empty Homes,Grants  Private Individuals (Capital),23/08/2017,210938,500.00,Redacted information - included personal information ,M00642,5,2017
Allerdale Borough Council,16150,Supplies & Services,Maryport Shop Front Improvements,General Promotions,23/08/2017,210939,900.00,Redacted information - included personal information ,M01199,5,2017
Allerdale Borough Council,16150,Supplies & Services,Maryport Shop Front Improvements,General Promotions,23/08/2017,210940,900.00,Redacted information - included personal information ,M01200,5,2017
Allerdale Borough Council,14100,Transport,Parking Services Pay Group,Budget-Council Vehicles (Non-capital),23/08/2017,210941,12.00,DOBIES VAUXHALL,A00254,5,2017
Allerdale Borough Council,14101,Transport,Recycling,Vehicle Leasing,23/08/2017,210942,6952.00,DOBIES VAUXHALL,A00254,5,2017
Allerdale Borough Council,12408,Premises,Public Convenience Cleaning,Water & Sewage,23/08/2017,210943,1170.98,UNITED UTILITIES ,X00011,5,2017
Allerdale Borough Council,12408,Premises,Car Parks Inspection & Maintenance,Water & Sewage,23/08/2017,210944,1133.59,UNITED UTILITIES ,X00011,5,2017
Allerdale Borough Council,12402,Premises,Corporate Property Maintenance,Electricity,23/08/2017,210945,17.81,BRITISH GAS ,X00039,5,2017
Allerdale Borough Council,12402,Premises,Corporate Property Maintenance,Electricity,23/08/2017,210946,8.47,BRITISH GAS,X00039,5,2017
Allerdale Borough Council,15405,Supplies & Services,Off-street - Owned,Use of External Printers,30/08/2017,210947,164.20,NAGELS UK LTD,A01182,5,2017
Allerdale Borough Council,12103,Premises,Harrington Harbour,Grounds Maintenance,23/08/2017,210948,27.66,WCF PET & EQUESTRIAN,A02275,5,2017
Allerdale Borough Council,15203,Supplies & Services,Mayoral Services,Catering Costs and Consumables,06/09/2017,210949,139.93,KENT AND SUSSEX VENDING,A02127,5,2017
Allerdale Borough Council,12402,Premises,Corporate Property Maintenance,Electricity,23/08/2017,210950,1748.04,N POWER,X00015,5,2017
Allerdale Borough Council,12402,Premises,Corporate Property Maintenance,Electricity,23/08/2017,210951,1816.92,N POWER,X00015,5,2017
Allerdale Borough Council,12402,Premises,Public Convenience Cleaning,Electricity,23/08/2017,210952,12.13,N POWER,X00015,5,2017
Allerdale Borough Council,12402,Premises,Public Convenience Cleaning,Electricity,23/08/2017,210953,18.97,N POWER,X00015,5,2017
Allerdale Borough Council,12402,Premises,Public Convenience Cleaning,Electricity,23/08/2017,210954,50.94,N POWER,X00015,5,2017
Allerdale Borough Council,12402,Premises,Public Convenience Cleaning,Electricity,23/08/2017,210955,2.75,N POWER,X00015,5,2017
Allerdale Borough Council,12402,Premises,Public Convenience Cleaning,Electricity,23/08/2017,210956,10.15,N POWER,X00015,5,2017
Allerdale Borough Council,12402,Premises,Public Convenience Cleaning,Electricity,23/08/2017,210957,117.75,N POWER,X00015,5,2017
Allerdale Borough Council,12402,Premises,Car Parks Inspection & Maintenance,Electricity,23/08/2017,210958,7.65,N POWER,X00015,5,2017
Allerdale Borough Council,12402,Premises,Car Parks Inspection & Maintenance,Electricity,23/08/2017,210959,6.79,N POWER,X00015,5,2017
Allerdale Borough Council,12402,Premises,Corporate Property Maintenance,Electricity,23/08/2017,210960,97.18,N POWER,X00015,5,2017
Allerdale Borough Council,12402,Premises,Corporate Property Maintenance,Electricity,23/08/2017,210961,36.73,N POWER,X00015,5,2017
Allerdale Borough Council,12402,Premises,Corporate Property Maintenance,Electricity,23/08/2017,210962,7.81,N POWER,X00015,5,2017
Allerdale Borough Council,12402,Premises,Corporate Property Maintenance,Electricity,23/08/2017,210963,32.72,N POWER,X00015,5,2017
Allerdale Borough Council,12402,Premises,Corporate Property Maintenance,Electricity,23/08/2017,210964,3.57,N POWER,X00015,5,2017
Allerdale Borough Council,12402,Premises,Corporate Property Maintenance,Electricity,23/08/2017,210965,3.80,N POWER,X00015,5,2017
Allerdale Borough Council,12402,Premises,Corporate Property Maintenance,Electricity,23/08/2017,210966,133.78,N POWER,X00015,5,2017
Allerdale Borough Council,12402,Premises,Corporate Property Maintenance,Electricity,23/08/2017,210967,109.38,N POWER,X00015,5,2017
Allerdale Borough Council,12402,Premises,Corporate Property Maintenance,Electricity,23/08/2017,210968,2.75,N POWER,X00015,5,2017
Allerdale Borough Council,12402,Premises,Corporate Property Maintenance,Electricity,23/08/2017,210969,13.22,N POWER,X00015,5,2017
Allerdale Borough Council,12402,Premises,Public Convenience Cleaning,Electricity,23/08/2017,210970,2.75,N POWER,X00015,5,2017
Allerdale Borough Council,12402,Premises,Public Convenience Cleaning,Electricity,23/08/2017,210971,3.92,N POWER,X00015,5,2017
Allerdale Borough Council,12402,Premises,Public Convenience Cleaning,Electricity,23/08/2017,210972,2.75,N POWER,X00015,5,2017
Allerdale Borough Council,12402,Premises,Public Convenience Cleaning,Electricity,23/08/2017,210973,15.80,N POWER,X00015,5,2017
Allerdale Borough Council,12402,Premises,Corporate Property Maintenance,Electricity,23/08/2017,210974,270.31,N POWER,X00015,5,2017
Allerdale Borough Council,15101,Supplies & Services,Recycling,Equipment Costs,30/08/2017,210975,12096.00,A & C WEBER UK LIMITED,A02372,5,2017
Allerdale Borough Council,15506,Supplies & Services,Sports Development,Professional Services,30/08/2017,210976,4915.00,CN EVENTS MANAGEMENT,A01099,5,2017
Allerdale Borough Council,21100,Transfer Payments,Economic Regeneration,Budget-Grants Paid,30/08/2017,210977,6162.50,BLOOM PROCUREMENT SERVICES LTD,A02360,5,2017
Allerdale Borough Council,20150,Third Party Payments,Corporate Property Maintenance,General Partnership Service Fees,06/09/2017,210978,260.71,ORIAN SOLUTIONS LTD,A01814,5,2017
Allerdale Borough Council,15501,Supplies & Services,Revenue,Consultants Fees,31/08/2017,210979,34.85,BARCLAYCARD COMMERCIAL ,X00207,5,2017
Allerdale Borough Council,14104,Transport,Public Convenience Cleaning,Repairs & Maintenance,,210980,546.57,BARCLAYCARD COMMERCIAL ,X00207,5,2017
Allerdale Borough Council,15103,Supplies & Services,Food and Occupational Health,Purchase of Materials,,210981,30.00,PUBLIC HEALTH ENGLAND,A01839,5,2017
Allerdale Borough Council,15506,Supplies & Services,Environmental Protection,Professional Services,,210982,71.20,UNITED UTILITIES PLC,A01657,5,2017
Allerdale Borough Council,15405,Supplies & Services,Housing & Health Pay Group,Use of External Printers,30/08/2017,210983,12.00,FIRPRESS PRINTERS,A00063,5,2017
Allerdale Borough Council,15501,Supplies & Services,Arts Development,Consultants Fees,30/08/2017,210984,1150.00,TGMS LIMITED,A02392,5,2017
Allerdale Borough Council,12501,Premises,Off-street - Owned,NNDR and Other Occupancy Charges,30/08/2017,210985,16378.54,BNP PARIBAS REAL ESTATE,A02353,5,2017
Allerdale Borough Council,12402,Premises,Public Convenience Cleaning,Electricity,,210986,13.26,N POWER,X00015,5,2017
Allerdale Borough Council,12402,Premises,Public Convenience Cleaning,Electricity,,210987,46.94,N POWER,X00015,5,2017
Allerdale Borough Council,12402,Premises,Public Convenience Cleaning,Electricity,,210988,-34.76,N POWER,X00015,5,2017
Allerdale Borough Council,12402,Premises,Public Convenience Cleaning,Electricity,,210989,-35.91,N POWER,X00015,5,2017
Allerdale Borough Council,12402,Premises,Public Convenience Cleaning,Electricity,,210990,-36.22,N POWER,X00015,5,2017
Allerdale Borough Council,12402,Premises,Public Convenience Cleaning,Electricity,,210991,-68.54,N POWER,X00015,5,2017
Allerdale Borough Council,12402,Premises,Public Convenience Cleaning,Electricity,,210992,13.16,N POWER,X00015,5,2017
Allerdale Borough Council,12402,Premises,Public Convenience Cleaning,Electricity,,210993,11.80,N POWER,X00015,5,2017
Allerdale Borough Council,12402,Premises,Corporate Property Maintenance,Electricity,,210994,2.13,N POWER,X00015,5,2017
Allerdale Borough Council,12402,Premises,Public Convenience Cleaning,Electricity,,210995,2.75,N POWER,X00015,5,2017
Allerdale Borough Council,12402,Premises,Public Convenience Cleaning,Electricity,,210996,2.75,N POWER,X00015,5,2017
Allerdale Borough Council,12402,Premises,Corporate Property Maintenance,Electricity,,210997,6.16,N POWER,X00015,5,2017
Allerdale Borough Council,12402,Premises,Corporate Property Maintenance,Electricity,,210998,23.73,N POWER,X00015,5,2017
Allerdale Borough Council,12402,Premises,Corporate Property Maintenance,Electricity,,210999,45.91,N POWER,X00015,5,2017
Allerdale Borough Council,12408,Premises,Corporate Property Maintenance,Water & Sewage,30/08/2017,211000,22.58,UNITED UTILITIES,X00011,5,2017
Allerdale Borough Council,12408,Premises,Corporate Property Maintenance,Water & Sewage,30/08/2017,211001,117.07,UNITED UTILITIES,X00011,5,2017
Allerdale Borough Council,12408,Premises,Corporate Property Maintenance,Water & Sewage,30/08/2017,211002,10.37,UNITED UTILITIES,X00011,5,2017
Allerdale Borough Council,12408,Premises,Corporate Property Maintenance,Water & Sewage,30/08/2017,211003,10.60,UNITED UTILITIES,X00011,5,2017
Allerdale Borough Council,12408,Premises,Corporate Property Maintenance,Water & Sewage,30/08/2017,211004,14.21,UNITED UTILITIES,X00011,5,2017
Allerdale Borough Council,12408,Premises,Corporate Property Maintenance,Water & Sewage,30/08/2017,211005,58.22,UNITED UTILITIES,X00011,5,2017
Allerdale Borough Council,12408,Premises,Corporate Property Maintenance,Water & Sewage,30/08/2017,211006,46.29,UNITED UTILITIES,X00011,5,2017
Allerdale Borough Council,12408,Premises,Corporate Property Maintenance,Water & Sewage,30/08/2017,211007,10.37,UNITED UTILITIES,X00011,5,2017
Allerdale Borough Council,12408,Premises,Public Convenience Cleaning,Water & Sewage,30/08/2017,211008,235.87,UNITED UTILITIES,X00011,5,2017
Allerdale Borough Council,12408,Premises,Corporate Property Maintenance,Water & Sewage,30/08/2017,211009,32.99,UNITED UTILITIES,X00011,5,2017
Allerdale Borough Council,16350,Supplies & Services,Off-street - Owned,Miscellaneous Expenses,30/08/2017,211010,581.05,3C PAYMENT LIMITED,A02382,5,2017
Allerdale Borough Council,15401,Supplies & Services,Corporate Postage and Stationary,General Stationery,,211011,250.00,ANTALIS LIMITED,A00122,5,2017
Allerdale Borough Council,10401,Employee Costs,Finance and Accounting Pay Group,Agency Staff Costs,,211012,186.59,HAYS SPECIALIST RECRUITMENT LTD,A00280,5,2017
Allerdale Borough Council,15501,Supplies & Services,Planning Policy,Consultants Fees,30/08/2017,211013,1586.25,G2 RECRUITMENT SOLUTIONS LTD,C00198,5,2017
Allerdale Borough Council,15101,Supplies & Services,Housing & Health Pay Group,Equipment Costs,,211014,139.00,EQUIP4WORK LTD T/A OFFICE FURNITURE ONLINE,A01958,5,2017
Allerdale Borough Council,12302,Premises,Solway Coast AONB Core Funding,Building Cleaning,06/09/2017,211015,105.27,ORIAN SOLUTIONS LTD,A01814,5,2017
Allerdale Borough Council,15601,Supplies & Services,Corporate Postage and Stationary,Postage,06/09/2017,211016,1213.51,UK MAIL GROUP PLC,A02371,5,2017
Allerdale Borough Council,10401,Employee Costs,Customer Services Pay Group,Agency Staff Costs,30/08/2017,211017,474.54,ADECCO RECRUITMENT,A00188,5,2017
Allerdale Borough Council,15811,Supplies & Services,IT Services,Software Maintenance,31/08/2017,211018,264.99,SAGE (UK) LTD ,A01911,5,2017
Allerdale Borough Council,15402,Supplies & Services,Customer Services Pay Group,Photocopier Charges,06/09/2017,211019,11.10,RICOH UK LTD,A00037,5,2017
Allerdale Borough Council,15402,Supplies & Services,Customer Services Pay Group,Photocopier Charges,06/09/2017,211020,9.56,RICOH UK LTD,A00037,5,2017
Allerdale Borough Council,15506,Supplies & Services,Food and Occupational Health,Professional Services,,211021,159.60,PUBLIC HEALTH ENGLAND,A01839,5,2017
Allerdale Borough Council,15501,Supplies & Services,Planning and Development,Consultants Fees,30/08/2017,211022,284.35,CAPITA ,A00683,5,2017
Allerdale Borough Council,15812,Supplies & Services,IT Services,Software Development,,211023,1700.00,ASTUN TECHNOLOGY LIMITED,A01234,5,2017
Allerdale Borough Council,15501,Supplies & Services,Estates,Consultants Fees,30/08/2017,211024,1470.00,Redacted information - included personal information ,A02433,5,2017
Allerdale Borough Council,16102,Supplies & Services,Social Impact Investment Fund,Regeneration Initiatives,30/08/2017,211025,14225.00,CUMBRIA YOUTH ALLIANCE,M00704,5,2017
Allerdale Borough Council,33118,Income,Off-street - Owned,Car Parks - Season Tickets Income,30/08/2017,211026,5.00,Redacted information - included personal information ,M01201,5,2017
Allerdale Borough Council,33118,Income,Off-street - Owned,Car Parks - Season Tickets Income,30/08/2017,211027,5.00,Redacted information - included personal information ,M01203,5,2017
Allerdale Borough Council,33118,Income,Off-street - Owned,Car Parks - Season Tickets Income,30/08/2017,211028,9.40,Redacted information - included personal information ,M01202,5,2017
Allerdale Borough Council,16150,Supplies & Services,Maryport Shop Front Improvements,General Promotions,30/08/2017,211029,765.00,Redacted information - included personal information ,M01204,5,2017
Allerdale Borough Council,16150,Supplies & Services,Maryport Shop Front Improvements,General Promotions,30/08/2017,211030,900.00,Redacted information - included personal information ,M01205,5,2017
Allerdale Borough Council,16150,Supplies & Services,Town Centre Management,General Promotions,30/08/2017,211031,500.00,ASPATRIA T.C.,X00047,5,2017
Allerdale Borough Council,33150,Income,Building Control - Non-Chargeable,Other Fees Income,30/08/2017,211032,15.42,BEATY & CO,M00352,5,2017
Allerdale Borough Council,15703,Supplies & Services,IT Services,Call Charges,30/08/2017,211033,1461.52,BRITISH TELECOMMUNICATIONS,X00004,5,2017
Allerdale Borough Council,20150,Third Party Payments,Land Charges Service,General Partnership Service Fees,30/08/2017,211034,16.05,LOCAL GOVERNMENT ASSOCIATION,A00686,5,2017
Allerdale Borough Council,15101,Supplies & Services,New Ways of Working,Equipment Costs,30/08/2017,211035,2450.00,APM DESIGN LIMITED,A02374,5,2017
Allerdale Borough Council,15550,Supplies & Services,Licensing Service,General-Service Related Fees,30/08/2017,211036,24.00,ORBIS PROTECT LTD (PREV SITEXORBIS LIMITED),A00679,5,2017
Allerdale Borough Council,15507,Supplies & Services,Land Charges Service,Searches,30/08/2017,211037,707.50,LAKE DISTRICT NATIONAL PARK AUTHORITY,A00415,5,2017
Allerdale Borough Council,10401,Employee Costs,Land Charges Service,Agency Staff Costs,30/08/2017,211038,510.60,ADECCO RECRUITMENT,A00188,5,2017
Allerdale Borough Council,12101,Premises,Corporate Property Maintenance,External Maintenance & Decoration,30/08/2017,211039,312.00,PATON BROS SCAFFOLDING LTD,C00009,5,2017
Allerdale Borough Council,20150,Third Party Payments,Managed Car Parks,General Partnership Service Fees,30/08/2017,211050,1109.65,KESWICK CONVENTION TRUST,A02390,5,2017
Allerdale Borough Council,20150,Third Party Payments,Managed Car Parks,General Partnership Service Fees,30/08/2017,211051,4381.95,KESWICK CONVENTION TRUST,A02390,5,2017
Allerdale Borough Council,20150,Third Party Payments,Managed Car Parks,General Partnership Service Fees,30/08/2017,211052,1479.30,KESWICK CONVENTION TRUST,A02390,5,2017
Allerdale Borough Council,20150,Third Party Payments,Managed Car Parks,General Partnership Service Fees,30/08/2017,211053,2102.20,KESWICK CONVENTION TRUST,A02390,5,2017
Allerdale Borough Council,20150,Third Party Payments,Managed Car Parks,General Partnership Service Fees,30/08/2017,211054,1459.95,KESWICK CONVENTION TRUST,A02390,5,2017
Allerdale Borough Council,20150,Third Party Payments,Managed Car Parks,General Partnership Service Fees,30/08/2017,211055,2400.25,KESWICK CONVENTION TRUST,A02390,5,2017
Allerdale Borough Council,20150,Third Party Payments,Managed Car Parks,General Partnership Service Fees,30/08/2017,211056,1593.75,KESWICK CONVENTION TRUST,A02390,5,2017
Allerdale Borough Council,20150,Third Party Payments,Managed Car Parks,General Partnership Service Fees,30/08/2017,211057,2317.35,KESWICK CONVENTION TRUST,A02390,5,2017
Allerdale Borough Council,20150,Third Party Payments,Managed Car Parks,General Partnership Service Fees,30/08/2017,211058,3925.05,KESWICK CONVENTION TRUST,A02390,5,2017
Allerdale Borough Council,20150,Third Party Payments,Managed Car Parks,General Partnership Service Fees,30/08/2017,211059,2182.45,KESWICK CONVENTION TRUST,A02390,5,2017
Allerdale Borough Council,20150,Third Party Payments,Managed Car Parks,General Partnership Service Fees,30/08/2017,211060,4294.05,KESWICK CONVENTION TRUST,A02390,5,2017
Allerdale Borough Council,20150,Third Party Payments,Managed Car Parks,General Partnership Service Fees,30/08/2017,211061,4628.70,KESWICK CONVENTION TRUST,A02390,5,2017
Allerdale Borough Council,15601,Supplies & Services,Corporate Postage and Stationary,Postage,30/08/2017,211067,373.31,ROYAL MAIL LETTERS,X00021,5,2017
Allerdale Borough Council,15502,Supplies & Services,Housing & Health Pay Group,Land Registry Fees,31/08/2017,211068,60.00,HM LAND REGISTRY ,A00505,5,2017
Allerdale Borough Council,15502,Supplies & Services,Housing & Health Pay Group,Land Registry Fees,31/08/2017,211069,102.00,HM LAND REGISTRY ,A00505,5,2017
Allerdale Borough Council,15502,Supplies & Services,Housing & Health Pay Group,Land Registry Fees,31/08/2017,211070,144.00,HM LAND REGISTRY ,A00505,5,2017
Allerdale Borough Council,75103,Holding and Control Accounts,Payroll Suspense Account,PAYROLL August 17 Travel & Subsistence  ,,,"12,427.07",INLAND REVENUE,X00038,5,2017
